bitfinex/quotes_ETHUSD_20260228
["timestamp","ask_amount","ask_price","bid_price","bid_amount"]
[1772291634112,5.33568096,1889.1,1888.4,4.04504378]
[1772291634315,1.32334007,1889.2,1888.4,4.04504378]
[1772291634506,4.01229546,1889.1,1888.4,0.001]
[1772291634717,7.66102641,1888.9,1888.4,0.001]
[1772291635218,1.32359169,1888.8,1888.4,0.001]
[1772291636013,1.32349193,1889.0,1888.4,4.04504378]
[1772291636217,5.33578739,1889.0,1888.4,0.001]
[1772291636601,7.66102641,1888.9,1888.4,0.001]
[1772291637319,7.66102641,1888.9,1888.1,6.04127494]
[1772291637320,1.32387206,1888.4,1888.0,1.81477216]
[1772291638323,4.97260301,1888.4,1888.2,0.001]
[1772291638816,8.98489847,1888.4,1888.2,0.001]
[1772291639188,8.98489847,1888.4,1888.0,1.81477216]
[1772291640324,1.3238395,1888.5,1888.0,7.18295354]
[1772291640619,1.32378666,1888.6,1888.0,7.18295354]
[1772291642019,7.38867696,1889.1,1888.1,4.04404378]
[1772291642322,7.66102641,1889.0,1888.1,4.04404378]
[1772291643412,4.01229546,1888.9,1888.1,4.04404378]
[1772291643619,3.64873095,1888.8,1888.1,4.04404378]
[1772291644224,1.32366177,1888.7,1888.2,1.32401228]
[1772291645323,7.66102641,1888.4,1888.0,1.81477216]
[1772291645505,7.66102641,1888.4,1887.8,2.06]
[1772291645506,3.64873095,1888.1,1887.8,0.001]
[1772291646203,1.32415254,1888.0,1887.8,0.001]
[1772291646526,1.32415254,1888.0,1886.9,1.80674217]
[1772291646527,4.01229546,1887.8,1886.9,1.80674217]
[1772291646699,5.70173095,1887.7,1887.3,3.4036978]
[1772291646905,3.64873095,1887.5,1887.3,3.4026978]
[1772291647106,7.66102641,1887.5,1886.9,1.80674217]
[1772291647324,7.66102641,1887.5,1887.1,0.001]
[1772291648722,1.32441386,1887.7,1887.1,0.001]
[1772291648927,4.97314481,1887.7,1887.1,0.001]
[1772291649427,2.055,1887.6,1887.1,0.001]
[1772291649928,2.055,1887.6,1887.1,0.002]
[1772291650227,5.11549241,1887.3,1886.5,5.30081258]
[1772291650435,4.01229546,1886.3,1884.8,5.30536378]
[1772291650723,4.01229546,1886.3,1884.6,5.45799638]
[1772291650724,1.32541618,1886.2,1885.4,4.18361459]
[1772291650936,5.11549241,1886.3,1885.5,8.52033791]
[1772291651098,6.44083862,1886.3,1885.5,4.18361459]
[1772291651296,6.44083862,1886.3,1885.6,4.33672332]
[1772291651501,10.45502134,1886.3,1885.6,4.33672332]
[1772291651706,6.44083862,1886.3,1885.6,4.33672332]
[1772291652511,6.44083862,1886.3,1885.6,5.6625308]
[1772291653232,3.38828145,1886.4,1885.6,5.6625308]
[1772291653611,5.11549241,1886.3,1885.6,4.33672332]
[1772291654209,5.11549241,1886.3,1885.6,5.6625557]
[1772291654532,5.11549241,1886.6,1885.6,9.84617029]
[1772291654715,5.11549241,1886.6,1885.7,7.19485154]
[1772291655233,5.11549241,1886.3,1885.8,1.32548637]
[1772291655915,5.11549241,1886.3,1885.9,3.01123695]
[1772291656138,7.17949241,1886.3,1885.8,1.32548637]
[1772291656317,7.17949241,1886.3,1885.5,1.32586027]
[1772291656515,7.17949241,1886.3,1885.6,1.32548637]
[1772291656720,7.17949241,1886.3,1885.4,4.18361459]
[1772291656721,1.32541618,1886.2,1885.5,2.6513852]
[1772291657133,1.32527565,1886.4,1885.6,4.18361459]
[1772291657856,1.32526149,1886.5,1885.6,4.18361459]
[1772291658134,3.38826149,1886.5,1885.7,1.32548637]
[1772291658435,3.38826149,1886.5,1885.7,4.18361459]
[1772291659011,1.32518606,1886.6,1885.9,4.18361459]
[1772291659408,1.32518606,1886.6,1886.0,1.32548637]
[1772291659840,5.11549241,1886.5,1886.0,1.32548637]
[1772291661140,1.32527565,1886.4,1886.0,1.32548637]
[1772291661339,1.3251697,1886.6,1886.0,6.83463773]
[1772291661542,5.11549241,1886.4,1885.5,5.50952283]
[1772291661833,2.063,1886.3,1885.5,4.18361459]
[1772291662038,2.064,1886.3,1885.6,1.32548637]
[1772291662721,2.064,1886.3,1885.8,0.001]
[1772291663204,1.32534591,1886.3,1885.9,1.32548637]
[1772291665625,3.39034591,1886.3,1885.9,1.32548637]
[1772291665817,3.39034591,1886.3,1885.7,0.001]
[1772291665818,5.11549241,1886.1,1885.7,0.001]
[1772291666240,8.84644728,1886.1,1885.7,0.001]
[1772291666434,3.73095487,1886.0,1885.7,0.001]
[1772291666741,3.73095487,1886.0,1885.2,1.60709373]
[1772291666742,5.11549241,1885.8,1885.2,0.28103069]
[1772291666931,2.067,1885.7,1885.2,0.28103069]
[1772291667141,5.83278902,1885.7,1885.2,0.28103069]
[1772291667533,5.11549241,1885.5,1885.2,0.28103069]
[1772291667735,5.11549241,1885.2,1884.6,1.47862009]
[1772291668319,5.11549241,1885.2,1884.6,1.47864679]
[1772291668520,5.11549241,1885.2,1884.6,0.1521119]
[1772291669154,9.12967513,1884.9,1883.9,5.51064893]
[1772291669319,2.069,1884.8,1884.0,4.18361459]
[1772291669680,1.32647105,1884.7,1884.1,1.32689347]
[1772291669945,3.39545836,1884.8,1884.1,1.32689347]
[1772291670129,2.66489384,1885.9,1884.1,1.32689347]
[1772291670130,5.30415061,1885.4,1884.4,4.18361459]
[1772291670546,2.069,1885.3,1884.4,4.18361459]
[1772291670749,5.11549241,1885.2,1884.4,4.18361459]
[1772291671738,1.32610091,1885.3,1884.6,4.18361459]
[1772291672320,5.11549241,1885.2,1884.5,1.32661183]
[1772291672520,5.11549241,1885.2,1884.6,4.18361459]
[1772291672757,6.44123382,1885.8,1884.6,4.18361459]
[1772291673225,6.44123382,1885.8,1884.7,2.058]
[1772291673430,2.069,1885.7,1884.8,4.18361459]
[1772291673631,2.069,1885.7,1885.0,4.18361459]
[1772291674238,10.45541654,1885.8,1885.0,4.18361459]
[1772291674445,4.01418272,1885.7,1884.7,4.18361459]
[1772291674643,4.01418272,1885.7,1884.7,5.51008386]
[1772291674644,5.11549241,1885.4,1884.7,5.51008386]
[1772291675534,1.3260489,1885.3,1884.7,5.51008386]
[1772291675739,1.3260489,1885.3,1884.7,4.18361459]
[1772291675936,1.3260489,1885.3,1884.5,1.3265579]
[1772291676636,1.3260489,1885.3,1882.8,10.23]
[1772291676637,4.01418272,1885.0,1882.8,10.23]
[1772291676949,4.01418272,1885.0,1882.0,2.60238884]
[1772291676950,0.94775676,1881.9,1880.8,0.1521119]
[1772291677140,5.11549241,1881.6,1880.8,4.18361459]
[1772291677467,5.11549241,1881.3,1881.0,4.18361459]
[1772291677635,2.82717673,1881.5,1881.0,4.18361459]
[1772291677834,2.82717673,1881.5,1881.1,7.00808229]
[1772291678036,2.82717673,1881.5,1880.7,12.52098916]
[1772291678276,2.82717673,1881.5,1880.8,4.18361459]
[1772291678647,2.82717673,1881.5,1880.9,7.00808229]
[1772291679062,2.16030824,1882.4,1881.1,4.18361459]
[1772291679235,2.16030824,1882.4,1880.9,5.11549241]
[1772291679236,0.37875546,1882.3,1881.0,5.1955674]
[1772291679436,0.37875546,1882.3,1881.1,4.18361459]
[1772291679647,1.32823291,1882.2,1881.1,4.18361459]
[1772291679854,1.32823291,1882.2,1881.2,5.1955674]
[1772291680148,4.76094298,1882.1,1880.7,4.18361459]
[1772291680366,0.42858701,1882.0,1880.7,4.18361459]
[1772291680668,0.36305101,1882.0,1880.8,4.39022702]
[1772291681237,0.065536,1881.9,1880.8,4.39022702]
[1772291681586,2.144,1881.8,1880.8,4.39022702]
[1772291681747,1.32858585,1881.7,1880.8,4.39022702]
[1772291681948,1.32858585,1881.7,1880.6,0.27424259]
[1772291681949,1.32858585,1881.7,1880.9,4.39022702]
[1772291682241,1.32858585,1881.7,1880.7,4.39022702]
[1772291682242,2.143,1881.6,1880.7,4.39022702]
[1772291682473,1.32858585,1881.7,1880.7,4.39022702]
[1772291682668,0.94775676,1881.6,1880.7,4.39022702]
[1772291682983,0.94775676,1881.6,1880.6,0.27424259]
[1772291683148,2.144,1881.5,1880.6,0.27424259]
[1772291683553,0.94775676,1881.6,1880.6,0.27424259]
[1772291683784,4.63694299,1880.7,1879.6,4.45963088]
[1772291684009,0.18685624,1881.3,1878.1,2.07250043]
[1772291684010,1.92276688,1880.2,1878.1,2.07250043]
[1772291684160,21.147814,1880.6,1878.1,2.07250043]
[1772291684161,1.65652411,1879.7,1878.2,9.77736885]
[1772291684476,16.08482897,1880.1,1878.3,4.4534057]
[1772291684477,1.92655557,1880.0,1878.3,4.4534057]
[1772291684760,0.065536,1879.6,1878.3,4.4534057]
[1772291684918,8.914643,1879.6,1878.3,4.4534057]
[1772291685076,0.065536,1879.7,1878.3,4.4034057]
[1772291685483,7.66929157,1879.6,1878.3,4.4034057]
[1772291685678,1.33014099,1879.5,1878.4,5.78432563]
[1772291685884,1.33014099,1879.5,1878.5,4.4534057]
[1772291686119,0.94775676,1879.6,1878.5,4.4534057]
[1772291686402,2.175,1879.5,1878.5,4.4534057]
[1772291686571,2.175,1879.5,1878.1,5.78447964]
[1772291686770,4.63694299,1879.5,1878.2,4.4534057]
[1772291686970,5.58469975,1879.6,1878.2,4.4534057]
[1772291687489,3.12475676,1879.6,1878.2,4.4534057]
[1772291687690,1.33028255,1879.3,1877.8,4.4534057]
[1772291687877,3.50828255,1879.3,1877.8,4.4534057]
[1772291688082,1.33028255,1879.3,1877.8,4.4534057]
[1772291688271,2.178,1879.4,1877.8,4.4534057]
[1772291688467,5.32061595,1879.5,1877.8,4.4034057]
[1772291688673,7.49861595,1879.5,1877.8,4.4034057]
[1772291688875,0.065536,1879.4,1877.8,4.4034057]
[1772291689097,5.32061595,1879.5,1877.8,4.4034057]
[1772291689386,2.241536,1879.4,1877.8,4.4034057]
[1772291689598,2.178,1879.3,1877.8,4.4034057]
[1772291689897,2.178,1879.2,1878.0,4.4534057]
[1772291690198,2.177,1879.1,1878.0,4.4534057]
[1772291690398,2.7086957,1879.0,1877.9,0.001]
[1772291690576,3.11841779,1879.0,1877.9,0.001]
[1772291690773,4.63694299,1878.8,1877.9,0.001]
[1772291691097,4.63694299,1878.8,1877.2,5.32703743]
[1772291691098,4.63694299,1878.4,1877.3,4.4534057]
[1772291691285,2.178,1878.3,1877.3,4.4534057]
[1772291691674,0.39934728,1878.6,1877.4,4.4534057]
[1772291691869,0.39934728,1878.6,1877.6,4.4534057]
[1772291692090,1.3304982,1879.0,1877.7,4.4534057]
[1772291692504,1.33021176,1879.4,1877.7,4.4534057]
[1772291692705,0.94775676,1879.3,1877.7,4.37018897]
[1772291693700,0.18685624,1879.2,1877.7,4.37018897]
[1772291694029,0.18685624,1879.2,1877.2,5.32623169]
[1772291694030,2.80675342,1877.7,1875.4,4.4534057]
[1772291694173,13.91082897,1878.3,1875.4,4.4534057]
[1772291694174,0.64,1875.9,1875.5,4.4534057]
[1772291694368,0.63171673,1877.6,1875.5,2.8234057]
[1772291694369,0.858,1877.2,1875.5,2.8234057]
[1772291694569,4.35459409,1877.3,1875.5,2.8234057]
[1772291694825,4.35459409,1877.3,1875.5,5.0194057]
[1772291695177,4.35459409,1877.4,1875.5,2.8234057]
[1772291695390,4.72226214,1877.3,1875.5,2.8234057]
[1772291695708,0.36766805,1877.3,1875.5,2.8234057]
[1772291695887,0.36766805,1877.3,1875.8,4.4534057]
[1772291696705,1.69938947,1877.3,1875.8,4.4534057]
[1772291696880,0.36766805,1877.3,1876.0,4.4534057]
[1772291697249,2.512948,1878.2,1876.2,4.4534057]
[1772291697377,0.36203171,1878.2,1876.6,4.4534057]
[1772291697883,0.36203171,1878.2,1876.8,4.4534057]
[1772291698779,1.69309777,1878.2,1876.8,4.4534057]
[1772291699006,1.69310358,1878.2,1876.8,4.4534057]
[1772291699309,0.36203171,1878.2,1876.8,4.4534057]
[1772291699512,1.69312671,1878.2,1876.8,4.4534057]
[1772291699717,0.36203171,1878.2,1876.8,4.4534057]
[1772291699945,0.36203171,1878.2,1876.9,1.33198358]
[1772291700110,0.36203171,1878.2,1877.0,2.198]
[1772291700312,0.36203171,1878.2,1877.1,4.4534057]
[1772291701245,1.33073629,1878.7,1877.1,4.4534057]
[1772291701536,5.32269479,1878.8,1877.1,4.4534057]
[1772291701537,1.33070649,1878.8,1877.1,4.4534057]
[1772291701911,1.33070649,1878.8,1877.3,4.4534057]
[1772291702507,5.32186831,1879.1,1877.4,4.4534057]
[1772291702734,5.32186831,1879.1,1877.4,4.37851065]
[1772291703136,0.0626,1879.2,1877.4,4.12851065]
[1772291703322,1.39298478,1879.2,1877.4,4.12851065]
[1772291703911,4.35459409,1879.1,1877.5,4.4534057]
[1772291704109,1.39298478,1879.2,1877.5,4.4534057]
[1772291704511,0.0626,1879.2,1878.3,4.4534057]
[1772291704715,0.0626,1879.2,1878.5,4.4534057]
[1772291705121,0.001,1879.4,1878.5,4.4534057]
[1772291705716,1.33122059,1879.4,1878.5,4.4534057]
[1772291705918,0.001,1879.4,1878.6,1.33077823]
[1772291706413,0.001,1879.4,1878.5,1.33079537]
[1772291707018,4.35559409,1879.4,1878.0,1.33119788]
[1772291707647,4.35559409,1879.4,1878.0,5.78460358]
[1772291707950,9.67672429,1879.4,1878.2,1.33106165]
[1772291708105,1.33121278,1879.4,1878.2,5.78446735]
[1772291709328,1.33123082,1879.4,1878.2,5.78446735]
[1772291709534,1.33123082,1879.4,1878.3,2.189]
[1772291709729,0.001,1879.4,1878.4,4.4534057]
[1772291709931,0.001,1879.4,1878.5,5.78425478]
[1772291710447,0.001,1879.4,1878.6,4.83288724]
[1772291710610,0.001,1879.4,1878.7,2.191]
[1772291710808,0.36285907,1880.1,1879.0,4.83288724]
[1772291711040,0.36285907,1880.1,1879.3,4.83288724]
[1772291711217,6.17960499,1880.8,1879.5,4.83288724]
[1772291711420,6.17935825,1881.2,1879.6,4.83288724]
[1772291711616,6.17933923,1881.2,1879.6,4.83288724]
[1772291711942,4.85034863,1881.2,1880.0,1.32978723]
[1772291712125,6.17929946,1881.2,1880.1,2.19]
[1772291712321,1.3287977,1881.4,1880.1,7.02288724]
[1772291712645,1.3287977,1881.4,1880.1,2.19]
[1772291712829,1.3287977,1881.4,1880.1,6.95548169]
[1772291713017,1.3287977,1881.4,1880.2,4.83288724]
[1772291713420,1.69125101,1881.5,1880.2,4.83288724]
[1772291713920,0.36252052,1881.5,1880.4,4.83288724]
[1772291714123,0.36252052,1881.5,1880.3,1.32957506]
[1772291714124,5.00953264,1881.5,1880.3,1.32957506]
[1772291714614,1.69126195,1881.5,1880.3,1.32957506]
[1772291715220,1.69126195,1881.5,1880.4,4.83288724]
[1772291715742,1.69125656,1881.5,1880.4,4.83288724]
[1772291715945,0.36252052,1881.5,1880.6,4.83288724]
[1772291716123,1.32865646,1881.6,1880.7,2.186]
[1772291716323,6.17844042,1882.5,1880.7,7.01888724]
[1772291716541,8.16861932,1882.1,1880.7,7.01888724]
[1772291717045,3.31827069,1882.1,1880.7,7.01888724]
[1772291717218,3.31827069,1881.8,1880.7,2.186]
[1772291717618,4.85034863,1882.0,1880.7,2.186]
[1772291718248,0.001,1881.4,1880.8,1.3292216]
[1772291718614,0.001,1881.4,1880.7,3.51523924]
[1772291719646,0.001,1881.4,1880.3,4.83288724]
[1772291719950,0.001,1881.4,1880.4,1.32950436]
[1772291720150,0.001,1881.4,1880.4,6.1623916]
[1772291720340,0.001,1881.4,1880.5,4.83288724]
[1772291721848,1.32830349,1882.1,1880.5,4.83288724]
[1772291722252,5.31321396,1882.3,1880.5,4.83288724]
[1772291722253,5.31321396,1882.3,1880.9,4.83288724]
[1772291722550,1.98433024,1882.7,1881.2,4.83288724]
[1772291722551,1.68980939,1882.7,1881.2,4.83288724]
[1772291722851,6.54015802,1882.7,1881.2,4.77222225]
[1772291723050,4.85034863,1882.5,1881.2,4.77222225]
[1772291724249,1.32809179,1882.4,1881.3,1.32886833]
[1772291725650,3.31827069,1882.2,1881.3,1.32886833]
[1772291725853,6.17844042,1882.4,1881.3,1.32886833]
[1772291726024,5.31206788,1882.6,1881.4,4.83288724]
[1772291726237,1.68984782,1882.7,1881.6,4.83288724]
[1772291726465,1.32793679,1882.7,1881.7,7.00588724]
[1772291726664,1.32793679,1882.7,1881.7,6.45990231]
[1772291727540,1.32793679,1882.7,1881.7,1.62701507]
[1772291728035,5.31140914,1882.8,1881.7,1.62701507]
[1772291728036,1.32783618,1882.8,1881.7,6.45990231]
[1772291728281,1.32752761,1883.2,1881.8,1.32851525]
[1772291728571,3.31827069,1883.1,1881.8,1.32851525]
[1772291729341,6.17787624,1883.2,1881.8,6.16140249]
[1772291729848,1.32752761,1883.2,1881.9,4.83288724]
[1772291730172,1.32742534,1883.4,1882.2,8.15115793]
[1772291730472,3.31827069,1883.5,1882.3,3.49610757]
[1772291730845,4.85034863,1883.7,1882.3,3.49610757]
[1772291731361,4.85034863,1883.3,1882.1,1.32825603]
[1772291731568,3.31827069,1883.1,1881.9,1.32844465]
[1772291732545,3.31827069,1883.1,1881.7,1.32858585]
[1772291732546,6.17801724,1883.0,1881.7,1.32858585]
[1772291733546,6.17801724,1883.0,1881.7,6.16147309]
[1772291733748,1.32766861,1883.0,1881.8,4.83288724]
[1772291734671,5.31167445,1883.2,1881.9,1.32844465]
[1772291735075,10.16202308,1883.2,1881.9,1.32844465]
[1772291737150,12.32302308,1883.2,1881.9,1.32844465]
[1772291737674,12.32302308,1883.2,1881.8,6.16134651]
[1772291737675,4.85034863,1883.0,1881.8,6.16134651]
[1772291738963,6.17808775,1882.9,1881.8,6.16134651]
[1772291739280,1.32773912,1882.9,1881.8,6.16134651]
[1772291739478,1.32773912,1882.9,1881.9,4.83288724]
[1772291739999,5.31067445,1883.1,1881.9,4.83288724]
[1772291740954,5.31067445,1883.1,1882.0,6.30572643]
[1772291741155,4.67394517,1883.0,1881.7,5.31418291]
[1772291742287,5.31067445,1883.1,1881.8,4.97735236]
[1772291743160,0.001,1883.2,1881.9,1.32844465]
[1772291743362,0.001,1883.2,1882.0,4.97735236]
[1772291743668,4.67394517,1883.0,1882.1,2.151]
[1772291745473,1.32773912,1882.9,1882.1,3.47929976]
[1772291745663,1.32773912,1882.9,1882.1,3.47930121]
[1772291746059,1.32773912,1882.9,1882.1,2.151]
[1772291746261,1.32773912,1882.9,1882.1,3.479297]
[1772291747375,5.00094994,1882.9,1882.1,3.479297]
[1772291748391,1.32852795,1883.2,1882.4,4.64583471]
[1772291748600,5.00173877,1883.2,1882.5,2.143]
[1772291748896,0.001,1882.9,1882.4,2.143]
[1772291749191,5.00173877,1883.2,1882.5,4.64583471]
[1772291749192,0.001,1883.2,1882.5,4.64583471]
[1772291749767,0.001,1883.2,1882.7,1.32788017]
[1772291750387,0.001,1883.2,1882.6,2.142]
[1772291751385,0.001,1883.2,1882.6,3.4699394]
[1772291752784,0.001,1883.2,1882.6,2.142]
[1772291752986,0.001,1883.2,1882.6,3.46994745]
[1772291753889,0.001,1883.2,1882.6,8.11578216]
[1772291754090,0.001,1883.2,1882.7,4.64583471]
[1772291754497,0.001,1883.2,1882.6,8.11578216]
[1772291754874,0.001,1883.2,1882.7,4.64583471]
[1772291755073,4.68398481,1884.0,1882.7,4.64583471]
[1772291755273,1.3270582,1883.9,1882.7,4.64583471]
[1772291756085,5.30792146,1884.0,1882.9,4.64583471]
[1772291756389,4.68398481,1883.8,1882.6,12.09939958]
[1772291757295,4.68398481,1883.8,1882.6,8.11578541]
[1772291757496,4.68398481,1883.8,1882.6,3.46993385]
[1772291758096,4.68398481,1883.6,1882.6,3.46993385]
[1772291758605,4.68398481,1883.5,1882.4,2.134]
[1772291759179,4.68398481,1883.2,1882.4,2.134]
[1772291760003,4.68398481,1883.2,1882.0,1.3283291]
[1772291760300,6.01158291,1883.1,1882.0,1.3283291]
[1772291760679,6.01158291,1883.1,1882.0,5.97416381]
[1772291760891,1.3275981,1883.1,1882.1,4.64583471]
[1772291761103,1.3275981,1883.1,1882.2,6.77683471]
[1772291761613,6.01158291,1883.1,1882.2,2.131]
[1772291761775,6.01158291,1883.1,1882.0,1.3283291]
[1772291761975,6.01158291,1883.1,1881.9,8.10425639]
[1772291761976,4.68398481,1883.0,1881.9,8.10425639]
[1772291762294,1.32773912,1882.9,1881.9,8.10425639]
[1772291763409,1.32773912,1882.9,1882.2,0.0011]
[1772291764109,5.3119565,1883.1,1882.2,0.0011]
[1772291764415,4.68398481,1882.9,1882.2,0.0011]
[1772291764779,0.001,1883.1,1882.2,0.0011]
[1772291764980,0.001,1883.1,1882.2,4.64693471]
[1772291768008,0.001,1883.1,1882.3,1.32816235]
[1772291768206,4.68398481,1883.0,1882.2,0.0011]
[1772291768913,4.68398481,1882.7,1882.0,0.0011]
[1772291769120,4.68398481,1882.6,1882.0,0.0011]
[1772291769878,4.68398481,1882.4,1882.0,0.0011]
[1772291770184,4.68398481,1882.4,1881.8,0.0011]
[1772291770384,4.68398481,1882.4,1881.5,0.0011]
[1772291771377,4.77164184,1882.9,1881.7,5.03038908]
[1772291771582,4.77164184,1882.8,1881.7,5.03038908]
[1772291772105,5.14633159,1882.6,1881.6,3.4436264]
[1772291772312,5.14633159,1882.3,1881.6,2.115]
[1772291773706,6.89164184,1882.5,1881.5,1.32979721]
[1772291773707,4.77164184,1882.5,1881.5,1.32979721]
[1772291773921,3.44688017,1882.7,1881.6,5.03038908]
[1772291774084,3.44688017,1882.7,1881.7,1.32858585]
[1772291774412,8.21852201,1882.7,1881.7,1.32858585]
[1772291775020,6.09952201,1882.7,1881.7,1.32858585]
[1772291775186,6.89064184,1882.6,1881.6,6.3589973]
[1772291775691,1.32788017,1882.7,1881.8,5.03038908]
[1772291775909,1.32788017,1882.7,1881.7,7.14138908]
[1772291776220,1.32788017,1882.7,1881.8,1.32851525]
[1772291777016,1.32788017,1882.7,1881.8,6.35890433]
[1772291777602,1.32788017,1882.7,1881.9,5.03038908]
[1772291777914,8.21638096,1883.0,1881.9,5.03038908]
[1772291778089,8.21638096,1883.0,1882.0,1.32837407]
[1772291778291,5.14633159,1882.9,1882.0,1.32837407]
[1772291778492,4.77164184,1882.8,1881.8,1.32845474]
[1772291778722,4.77164184,1882.8,1881.8,6.35884382]
[1772291778903,6.88764184,1882.8,1881.8,6.35994382]
[1772291779798,2.115,1882.7,1881.8,6.35994382]
[1772291779994,2.115,1882.7,1881.8,5.03148908]
[1772291780186,1.32802124,1882.5,1881.8,0.0011]
[1772291780400,4.77164184,1882.4,1881.8,0.0011]
[1772291780909,4.77164184,1882.2,1881.7,0.0011]
[1772291782316,1.32830349,1882.1,1881.7,0.0011]
[1772291783196,3.44188017,1882.7,1881.7,5.03148908]
[1772291783619,3.44188017,1882.7,1881.7,7.13248908]
[1772291783808,1.32788017,1882.7,1881.8,5.03038908]
[1772291784615,1.32788017,1882.7,1881.9,1.32844465]
[1772291784942,1.32788017,1882.7,1881.9,6.35883373]
[1772291786528,0.001,1883.1,1882.2,5.03038908]
[1772291786733,1.3286089,1883.1,1882.2,5.03038908]
[1772291788533,0.001,1883.1,1882.3,6.35855143]
[1772291791113,0.001,1883.1,1882.4,5.03038908]
[1772291792726,0.001,1883.1,1882.5,1.32802124]
[1772291792917,0.001,1883.1,1882.4,6.3584608]
[1772291793911,0.001,1883.1,1882.5,5.03038908]
[1772291795631,0.001,1883.1,1882.6,1.3279507]
[1772291796003,0.001,1883.1,1882.7,7.11938908]
[1772291797216,1.32736474,1883.5,1882.8,5.03038908]
[1772291797536,1.32717524,1883.7,1882.9,5.03038908]
[1772291797836,1.32717524,1883.7,1882.7,2.089]
[1772291797837,4.77164184,1883.6,1882.7,3.41685098]
[1772291798640,1.32717524,1883.7,1882.8,5.03038908]
[1772291798941,1.32717524,1883.7,1882.7,2.089]
[1772291798942,4.77164184,1883.6,1882.7,2.089]
[1772291799158,4.77164184,1883.5,1882.7,3.41687929]
[1772291800010,1.32738664,1883.4,1882.7,3.41687929]
[1772291800735,1.32738664,1883.4,1882.7,8.28808364]
[1772291801113,1.32738664,1883.4,1882.7,3.41687275]
[1772291801829,1.32738664,1883.4,1882.7,2.089]
[1772291802013,10.35257821,1883.5,1882.7,2.089]
[1772291802208,5.04303165,1883.4,1882.4,8.28423888]
[1772291803735,5.04303165,1883.4,1882.4,2.085]
[1772291803940,1.32745712,1883.3,1882.4,3.41308099]
[1772291804105,6.19984116,1883.3,1882.4,2.085]
[1772291804619,4.87238404,1883.2,1882.4,2.085]
[1772291805020,4.87238404,1883.2,1882.5,0.0011]
[1772291806172,1.3275981,1883.1,1882.5,0.0011]
[1772291807452,6.19998214,1883.1,1882.5,0.0011]
[1772291809064,1.32850661,1883.3,1882.5,5.03763631]
[1772291809368,1.32846212,1883.3,1882.5,5.03763631]
[1772291811555,0.001,1883.3,1882.7,5.03653631]
[1772291811958,6.19953118,1883.8,1882.9,5.03653631]
[1772291812159,4.87238404,1883.7,1883.0,2.074]
[1772291813544,4.87238404,1883.5,1882.6,7.10853631]
[1772291814064,4.87238404,1883.4,1882.6,7.10853631]
[1772291814363,4.87238404,1883.3,1882.5,0.0011]
[1772291816671,6.19991165,1883.2,1882.5,0.0011]
[1772291817751,1.32752761,1883.2,1882.5,0.0011]
[1772291817955,4.87238404,1883.1,1882.5,0.0011]
[1772291818982,1.32766861,1883.0,1882.5,0.0011]
[1772291820007,1.32766861,1883.0,1882.6,0.0011]
[1772291821180,5.31067445,1883.1,1882.6,0.0011]
[1772291821682,4.87238404,1882.9,1882.4,0.0011]
[1772291822679,4.87338404,1883.2,1882.4,0.0011]
[1772291822885,4.87338404,1883.2,1882.5,5.03653631]
[1772291822886,1.32853327,1883.2,1882.5,5.03653631]
[1772291823209,1.32853327,1883.2,1882.3,0.0011]
[1772291823210,5.14633159,1882.8,1882.3,0.0011]
[1772291823489,1.32766861,1883.0,1881.9,0.0011]
[1772291823490,4.87238404,1882.4,1881.9,0.0011]
[1772291823659,4.87238404,1882.7,1881.9,0.0011]
[1772291823982,6.95138404,1882.7,1881.9,0.0011]
[1772291824353,4.87238404,1882.6,1881.9,0.0011]
[1772291824550,4.87238404,1882.5,1881.9,0.0011]
[1772291824754,5.14633159,1882.5,1881.9,0.0011]
[1772291824954,4.87238404,1882.4,1881.9,0.0011]
[1772291825188,4.87238404,1882.4,1881.8,0.0011]
[1772291825555,6.20054639,1882.3,1881.8,0.0011]
[1772291825756,10.18418686,1882.8,1881.8,5.03763631]
[1772291825965,4.87238404,1882.7,1881.8,5.03763631]
[1772291826585,5.31180282,1882.8,1881.8,5.03763631]
[1772291827289,3.40680964,1882.9,1881.9,5.03653631]
[1772291827290,5.3110592,1882.9,1881.9,5.03653631]
[1772291827523,1.32773912,1882.9,1882.1,5.03653631]
[1772291827654,10.18314614,1883.0,1882.0,6.36491038]
[1772291827989,10.18314614,1883.0,1882.1,5.03653631]
[1772291828167,5.31066985,1883.1,1882.1,5.03653631]
[1772291828362,10.18305389,1883.1,1882.1,5.03653631]
[1772291828694,1.328583,1883.2,1882.2,5.03653631]
[1772291829906,4.87338404,1883.2,1882.3,1.32816235]
[1772291830198,0.001,1883.2,1882.4,5.03653631]
[1772291831763,6.14281118,1883.1,1882.2,5.31264941]
[1772291831969,4.81521308,1883.0,1882.1,8.15062812]
[1772291832266,4.81521308,1883.0,1882.1,2.056]
[1772291833090,6.89221308,1882.9,1882.1,2.056]
[1772291833672,4.81521308,1882.7,1881.8,1.32954771]
[1772291833906,1.3279507,1882.6,1881.8,4.76747984]
[1772291834066,1.3279507,1882.6,1881.4,8.98814728]
[1772291834067,4.81521308,1881.9,1881.1,0.003]
[1772291834272,6.89121308,1881.9,1881.1,0.003]
[1772291834707,8.48817346,1881.6,1881.1,0.003]
[1772291835204,4.81521308,1881.5,1880.8,0.003]
[1772291835867,1.32886833,1881.3,1880.8,0.003]
[1772291836283,4.81521308,1881.6,1880.8,0.003]
[1772291836496,4.81521308,1881.5,1880.8,0.003]
[1772291837079,2.08,1881.5,1880.8,0.003]
[1772291837474,5.31434909,1881.7,1880.8,0.003]
[1772291837676,5.31434909,1881.7,1880.8,4.76937984]
[1772291837875,5.31434909,1881.7,1880.8,6.0985541]
[1772291838700,5.31434909,1881.7,1880.9,4.76637984]
[1772291840111,1.32816235,1882.3,1881.1,4.76637984]
[1772291840403,4.81521308,1882.1,1881.1,4.76637984]
[1772291840577,3.67296038,1882.2,1881.1,4.76637984]
[1772291840780,3.40616235,1882.3,1881.1,4.76637984]
[1772291841408,1.32816235,1882.3,1881.1,4.76637984]
[1772291841780,1.32816235,1882.3,1881.3,4.76637984]
[1772291841980,1.32816235,1882.3,1881.5,4.76637984]
[1772291842401,1.32816235,1882.3,1881.6,4.76637984]
[1772291844317,4.81521308,1882.9,1881.8,4.76637984]
[1772291844485,3.40380964,1882.8,1881.8,4.76637984]
[1772291845217,9.8159831,1882.8,1881.8,4.76637984]
[1772291845504,11.8909831,1882.8,1881.8,4.76637984]
[1772291845695,2.075,1882.7,1881.8,4.76637984]
[1772291846296,1.3279507,1882.6,1881.9,1.32844465]
[1772291846502,1.3279507,1882.6,1881.9,6.09482449]
[1772291846700,3.67296038,1883.0,1882.0,4.76637984]
[1772291846900,5.3109565,1883.0,1882.0,6.81337984]
[1772291847213,0.001,1882.6,1882.0,6.81337984]